bitfinex-derivatives/quotes_ETHF0:USTF0_20251116
["timestamp","ask_amount","ask_price","bid_price","bid_amount"]
[1763320103318,0.00488106,3073.5,3073.4,3.8709]
[1763320104014,1.18380106,3073.5,3073.4,3.2078]
[1763320105019,1.17903,3072.9,3072.8,0.00488106]
[1763320105916,0.52751,3073.0,3072.8,0.00488106]
[1763320106117,3.21268106,3073.5,3072.8,0.66798106]
[1763320106311,0.52751,3073.0,3072.8,0.66798106]
[1763320106813,1.17903,3072.9,3072.8,0.00488106]
[1763320107009,0.52747,3073.3,3072.8,0.66798106]
[1763320107210,3.21268106,3073.5,3072.9,3.2078]
[1763320107211,0.52748,3073.2,3072.9,3.2078]
[1763320107515,0.52749,3073.1,3072.9,3.2078]
[1763320107720,0.6515,3073.0,3072.9,3.2078]
[1763320108313,1.17901,3073.0,3072.9,3.2078]
[1763320109517,1.17903,3072.9,3072.8,0.00488106]
[1763320109713,4.38683,3072.9,3072.8,0.00488106]
[1763320110016,0.3883,3072.6,3072.0,0.3822]
[1763320110321,0.52762,3072.4,3072.3,0.6631]
[1763320111026,3.2078,3072.9,3072.8,0.6631]
[1763320111219,3.2078,3072.9,3072.0,0.38708106]
[1763320111220,0.52755,3072.8,3072.5,3.2078]
[1763320111618,3.2078,3072.9,3072.5,3.2078]
[1763320112426,1.56738,3072.6,3072.5,3.2078]
[1763320112922,1.17908,3072.6,3072.5,3.2078]
[1763320113116,0.52763,3072.4,3072.0,4.46740444]
[1763320113324,0.52764,3072.3,3072.0,3.59488106]
[1763320113525,0.52766,3072.1,3072.0,3.21268106]
[1763320113725,0.52765,3072.2,3072.0,3.21268106]
[1763320114817,3.73543,3072.4,3072.0,3.21268106]
[1763320115017,3.2078,3072.4,3072.0,3.21268106]
[1763320115226,0.52762,3072.4,3072.0,3.59488106]
[1763320115921,3.2078,3072.9,3072.3,0.6631]
[1763320116116,0.52754,3072.8,3072.7,0.6631]
[1763320116719,3.2078,3072.9,3072.8,0.6631]
[1763320117527,3.2078,3073.4,3073.3,0.6631]
[1763320117722,3.2078,3073.4,3073.0,0.3822]
[1763320117924,3.2078,3073.4,3073.3,0.6631]
[1763320118729,3.73524,3073.4,3073.3,0.6631]
[1763320119127,3.2078,3073.4,3073.3,0.6631]
[1763320119326,0.53231106,3073.5,3073.3,0.6631]
[1763320119735,0.52744,3073.4,3073.3,0.6631]
[1763320120032,0.53231106,3073.5,3073.3,0.6631]
[1763320120332,0.53231106,3073.5,3073.4,0.6631]
[1763320122132,0.6515,3073.3,3073.2,3.2078]
[1763320122529,0.52744,3073.4,3073.2,3.2078]
[1763320122725,0.00488106,3073.5,3073.4,0.6631]
[1763320122923,0.00488106,3073.5,3073.4,1.53562338]
[1763320123124,0.00488106,3073.5,3073.4,1.82646451]
[1763320126039,0.00353357,3073.9,3073.8,0.6631]
[1763320126237,0.00353357,3073.9,3073.8,0.66675111]
[1763320128435,1.12979357,3073.9,3073.8,0.00365111]
[1763320128738,4.33759357,3073.9,3073.8,0.00365111]
[1763320130943,1.12638,3073.2,3073.1,3.2078]
[1763320131831,0.52753,3072.9,3072.8,1.4717977]
[1763320132032,0.52749,3073.2,3072.8,0.60258106]
[1763320132241,0.52753,3073.0,3072.9,0.5977]
[1763320132542,1.12643,3072.9,3072.8,0.88203172]
[1763320134643,3.2078,3073.5,3072.8,1.47973172]
[1763320134939,0.3614,3075.0,3072.8,1.47973172]
[1763320134940,0.3614,3075.5,3073.9,3.259]
[1763320135140,3.2078,3076.4,3075.4,4.3709778]
[1763320135341,0.3614,3076.5,3075.9,3.2078]
[1763320135732,0.36509395,3076.5,3076.3,3.2078]
[1763320135935,0.36997501,3076.5,3076.3,3.2078]
[1763320137337,0.5989,3076.4,3076.3,3.2078]
[1763320143253,0.36997501,3076.5,3076.3,3.2078]
[1763320144352,0.89688501,3076.5,3076.3,3.2078]
[1763320144849,0.36997501,3076.5,3076.3,3.2078]
[1763320145645,0.89688501,3076.5,3076.3,3.2078]
[1763320145958,0.52693,3076.4,3076.3,3.2078]
[1763320146251,0.5989,3076.4,3076.3,3.2078]
[1763320147351,1.12583,3076.4,3076.3,3.2078]
[1763320148457,1.12583,3076.4,3075.0,1.1631778]
[1763320148458,0.9603,3075.5,3075.0,3.2078]
[1763320148752,1.12605,3075.1,3075.0,3.2078]
[1763320149351,0.5989,3075.1,3075.0,3.21175986]
[1763320150056,1.12605,3075.1,3075.0,3.21175986]
[1763320150257,1.12605,3075.1,3075.0,0.00395986]
[1763320152250,1.1261,3074.8,3074.7,0.00488106]
[1763320153055,0.3614,3075.0,3074.7,0.00488106]
[1763320153352,0.3614,3075.5,3074.9,3.2078]
[1763320153552,0.36997501,3076.5,3075.3,3.2078]
[1763320153759,0.36997501,3076.5,3076.0,2.37891335]
[1763320153957,0.36997501,3076.5,3075.9,3.2078]
[1763320155258,0.36997501,3076.5,3076.0,2.37891335]
[1763320156159,3.2078,3077.1,3076.4,5.58671335]
[1763320156366,11.712,3079.1,3076.4,5.58671335]
[1763320156367,0.52641,3079.5,3077.5,3.2078]
[1763320156562,0.409,3079.2,3078.8,3.2078]
[1763320156762,3.2078,3079.0,3078.4,0.27750983]
[1763320156969,3.2078,3079.0,3078.3,0.87232026]
[1763320156970,0.409,3078.6,3078.3,0.87232026]
[1763320157270,3.2078,3078.5,3078.3,0.00345598]
[1763320157563,0.41288691,3078.6,3078.3,0.00345598]
[1763320157764,3.2078,3078.5,3078.3,0.00345598]
[1763320157966,0.09916809,3078.4,3078.3,0.00345598]
[1763320159070,0.00388691,3078.6,3078.3,5.59016933]
[1763320159268,3.2078,3080.3,3078.3,5.59016933]
[1763320159467,4.8111,3079.2,3078.5,3.2078]
[1763320159767,1.6033,3079.2,3078.5,3.2078]
[1763320159961,0.6095,3079.2,3078.7,2.37891335]
[1763320160158,0.61248594,3079.2,3078.7,2.37891335]
[1763320161470,0.00298594,3079.2,3079.1,3.2078]
[1763320162370,0.00298594,3079.2,3079.1,5.58671335]
[1763320165967,0.00298594,3079.2,3079.1,3.2078]
[1763320165968,0.61248594,3079.2,3079.1,3.2078]
[1763320166465,1.60628594,3079.2,3079.1,3.2078]
[1763320168354,2.13274594,3079.2,3078.7,3.2078]
[1763320168565,0.52647,3079.1,3078.7,3.2078]
[1763320168767,1.52032,3078.8,3078.7,3.2078]
[1763320169470,1.52038,3078.4,3078.3,0.00345598]
[1763320172574,3.2078,3078.5,3078.3,0.00345598]
[1763320173464,0.9938,3077.9,3077.4,3.2078]
[1763320173666,0.52669,3077.8,3077.4,3.2078]
[1763320174074,0.6095,3078.0,3077.4,3.2078]
[1763320174265,0.6095,3078.0,3077.6,2.37891335]
[1763320174462,0.6095,3078.0,3077.6,2.38129459]
[1763320174768,1.5205,3077.7,3077.6,0.00238124]
[1763320174971,0.6095,3078.0,3077.6,0.00238124]
[1763320175375,1.13615,3078.0,3077.6,0.00238124]
[1763320175575,0.6095,3078.0,3077.6,0.00238124]
[1763320177166,0.00298594,3079.2,3077.9,6.4668]
[1763320177366,0.00298594,3079.2,3079.1,3.2078]
[1763320177570,0.61248594,3079.2,3079.1,3.2078]
[1763320177775,0.61248594,3079.2,3078.7,3.2078]
[1763320178772,1.13893594,3079.2,3078.7,3.2078]
[1763320179085,0.61248594,3079.2,3078.7,3.2078]
[1763320179683,1.13893594,3079.2,3078.7,3.2078]
[1763320179878,0.61248594,3079.2,3078.7,3.2078]
[1763320180083,0.9938,3078.8,3078.7,3.2078]
[1763320180585,0.61248594,3079.2,3078.7,3.2078]
[1763320181587,0.61248594,3079.2,3079.1,3.2078]
[1763320182284,0.61248594,3079.2,3079.1,4.07178396]
[1763320182489,1.60628594,3079.2,3079.1,4.07178396]
[1763320182888,0.61248594,3079.2,3079.1,4.07178396]
[1763320183392,0.61248594,3079.2,3079.1,4.3709778]
[1763320183692,1.60628594,3079.2,3079.1,4.3709778]
[1763320183890,0.9938,3079.1,3079.0,1.1631778]
[1763320184084,0.52648,3079.0,3078.9,0.87026954]
[1763320184290,1.52028,3079.0,3078.9,1.1631778]
[1763320184793,0.61248594,3079.2,3078.9,1.1631778]
[1763320184994,1.60628594,3079.2,3079.1,0.87127356]
[1763320185391,0.52647,3079.1,3079.0,1.1631778]
[1763320185596,0.61248594,3079.2,3079.0,1.1631778]
[1763320185798,1.13893594,3079.2,3079.0,1.1631778]
[1763320186198,1.52027,3079.1,3079.0,1.1631778]
[1763320186496,0.52648,3079.0,3078.9,1.74828091]
[1763320186795,0.52647,3079.1,3078.9,1.74828091]
[1763320187892,0.61248594,3079.2,3078.9,1.74828091]
[1763320187893,1.52028,3079.0,3078.9,1.74828091]
[1763320188896,1.52028,3079.0,3078.7,3.2078]
[1763320188897,1.5203,3078.9,3078.8,1.74828091]
[1763320189895,1.5203,3078.9,3077.9,2.37891335]
[1763320189896,0.5722,3078.0,3077.8,8.45152577]
[1763320190094,1.0065,3077.9,3077.8,5.53884121]
[1763320190296,0.5722,3078.0,3077.8,3.2078]
[1763320190498,1.09885,3078.0,3077.8,3.2078]
[1763320190989,0.5722,3078.0,3077.8,3.2078]
[1763320192800,3.73437,3078.5,3077.9,2.76661335]
[1763320192998,4.74087,3078.5,3078.4,0.87315795]
[1763320193199,1.0065,3078.4,3078.3,0.87315795]
[1763320193502,3.73437,3078.5,3078.3,0.87315795]
[1763320193801,1.53308,3078.4,3078.3,0.87315795]
[1763320193996,0.52665,3078.0,3077.9,1.16421061]
[1763320194203,1.09885,3078.0,3077.8,4.37201061]
[1763320194698,0.5266,3078.4,3077.8,4.37201061]
[1763320194898,3.2078,3078.5,3077.8,4.37201061]
[1763320195101,0.52659,3078.4,3078.0,1.039]
[1763320195297,0.52658,3078.4,3078.0,2.20321061]
[1763320195501,3.2078,3078.5,3078.0,2.20321061]
[1763320195801,0.52662,3078.3,3078.0,2.20321061]
[1763320196004,0.52662,3078.2,3078.0,2.20321061]
[1763320197197,3.2078,3078.5,3078.0,2.20321061]
[1763320197804,0.52663,3078.2,3078.0,2.20321061]
[1763320198608,3.73444,3078.1,3078.0,2.20321061]
[1763320198901,2.10535,3078.0,3077.9,1.16421061]
[1763320199596,0.52667,3077.9,3077.8,1.16421061]
[1763320199791,0.5722,3078.0,3077.8,1.16421061]
[1763320199992,0.52667,3077.9,3077.8,1.16421061]
[1763320200199,0.5722,3078.0,3077.8,1.16421061]
[1763320200400,1.09885,3078.0,3077.8,1.16421061]
[1763320200802,1.09885,3078.0,3077.7,1.16421061]
[1763320202310,0.52667,3077.9,3077.7,1.16421061]
[1763320202506,1.09886,3078.0,3077.7,1.16421061]
[1763320202808,0.5722,3078.0,3077.7,1.16421061]
[1763320203012,0.52667,3077.9,3077.7,1.16421061]
[1763320203807,0.52667,3077.9,3077.6,0.00238124]
[1763320203808,1.53319,3077.8,3077.6,1.16659185]
[1763320203998,4.741,3077.7,3077.6,1.16659185]
[1763320204202,4.741,3077.7,3077.6,0.00238124]
[1763320204506,0.5722,3078.0,3077.9,1.039]
[1763320204704,3.2078,3078.1,3078.0,1.039]
[1763320205106,3.73444,3078.1,3078.0,1.039]
[1763320206103,0.52668,3077.9,3077.6,1.16659185]
[1763320206503,0.52669,3077.8,3077.6,1.16659185]
[1763320207301,0.5722,3078.0,3077.6,1.16659185]
[1763320207501,3.2078,3078.5,3078.4,1.039]
[1763320208003,0.61248594,3079.2,3078.0,0.3877]
[1763320208004,3.2078,3078.9,3078.8,1.039]
[1763320208210,0.00298594,3079.2,3079.1,1.039]
[1763320208402,0.00298594,3079.2,3079.1,4.2468]
[1763320208705,3.78,3080.5,3079.1,11.53884121]
[1763320209004,3.78,3080.5,3080.0,1.163767]
[1763320209309,1.0065,3079.9,3079.7,1.163767]
[1763320209804,1.0065,3079.8,3079.7,1.163767]
[1763320210205,0.5722,3080.0,3079.7,1.163767]
[1763320210206,1.09851,3080.0,3079.7,1.163767]
[1763320210398,0.52635,3079.8,3079.5,4.371567]
[1763320211300,3.73415,3079.8,3079.5,1.163767]
[1763320211511,3.2078,3079.8,3079.5,1.163767]
[1763320211897,3.2078,3079.8,3079.4,1.163767]
[1763320212109,3.21196253,3079.8,3079.4,1.163767]
[1763320212710,1.09861,3079.5,3079.3,0.00779635]
[1763320212904,1.0065,3079.4,3079.3,0.00779635]
[1763320213305,4.2143,3079.4,3079.3,0.00779635]
[1763320213706,1.0065,3078.7,3078.6,3.2078]
[1763320214506,3.2078,3079.4,3078.9,1.039]
[1763320214906,3.2078,3079.0,3078.9,1.039]
[1763320215710,3.2078,3079.0,3078.6,3.2078]
[1763320215711,3.2078,3079.4,3079.3,1.039]
[1763320215904,0.00416253,3079.8,3079.7,0.9495]
[1763320216818,1.00926253,3079.8,3079.4,0.0048725]
[1763320217012,0.618,3079.5,3079.4,0.0048725]
[1763320217218,0.53052253,3079.8,3079.4,0.9543725]
[1763320217713,0.53052253,3079.8,3079.4,0.95668502]
[1763320218109,0.52636,3079.7,3079.4,0.95668502]
[1763320218919,0.598,3081.0,3079.6,3.2078]
[1763320219112,0.598,3081.0,3079.4,2.33822623]
[1763320219113,0.598,3081.0,3080.2,1.16019252]
[1763320219316,0.598,3081.0,3080.5,3.2078]
[1763320219505,0.09916809,3080.6,3080.5,3.2078]
[1763320220111,0.598,3081.0,3080.5,9.47338265]
[1763320220314,0.618,3081.5,3080.9,3.2078]
[1763320220814,2.82158348,3082.9,3081.4,3.2078]
[1763320220815,1.6457484,3082.8,3081.4,3.2078]
[1763320221014,1.6457484,3082.8,3080.9,1.16019252]
[1763320221015,7.43841273,3087.3,3083.7,3.2078]
[1763320221211,3.8058,3088.4,3087.1,2.82158348]
[1763320221409,0.348,3088.4,3087.9,1.74028879]
[1763320221609,0.348,3088.4,3087.2,5.7590802]
[1763320221610,16.1936,3088.3,3088.2,1.74028879]
[1763320221912,0.598,3087.7,3087.3,2.30703725]
[1763320222111,3.8084,3087.7,3087.2,3.2078]
[1763320222311,3.2078,3087.8,3087.0,3.2078]
[1763320222510,0.598,3088.4,3087.4,3.2078]
[1763320222511,3.2104,3087.9,3087.4,3.2078]
[1763320222718,23.83396664,3088.3,3087.5,0.41426962]
[1763320222923,3.8058,3088.4,3087.7,3.2078]
[1763320222924,0.00364406,3087.9,3087.7,3.2078]
[1763320223109,7.64036664,3088.3,3087.8,0.41426962]
[1763320223311,23.83236664,3088.3,3087.9,0.41426962]
[1763320223516,7.64036664,3088.2,3088.0,0.41426962]
[1763320223716,23.83236664,3088.2,3088.1,0.41426962]
[1763320224023,23.83236664,3088.1,3087.7,3.21266436]
[1763320224219,7.64036664,3088.3,3087.7,3.21266436]
[1763320224420,0.598,3088.4,3088.1,3.2078]
[1763320224622,0.00307248,3088.3,3088.1,3.2078]
[1763320224923,0.00486436,3088.6,3088.1,3.2078]
[1763320225114,0.00486436,3088.6,3088.5,3.2078]
[1763320225317,3.2078,3090.1,3088.5,3.2078]
[1763320225619,23.82596664,3089.7,3089.4,3.2078]
[1763320226011,0.598,3088.8,3088.5,3.2078]
[1763320226216,0.598,3088.8,3086.0,17.3421706]
[1763320226217,0.598,3088.8,3088.0,3.2078]
[1763320226515,3.2078,3088.5,3087.6,3.2078]
[1763320226914,3.2078,3089.3,3088.2,3.2078]
[1763320227116,0.598,3089.8,3088.2,3.2078]
[1763320227117,3.2078,3089.5,3088.2,3.2078]
[1763320227315,16.1872,3089.7,3088.6,3.2078]
[1763320227521,3.2078,3090.2,3089.6,3.2078]
[1763320227828,3.2078,3089.9,3089.2,3.2078]
[1763320228017,3.2078,3089.3,3089.2,1.12062999]
[1763320228215,0.598,3088.8,3088.7,1.12062999]
[1763320228421,0.598,3088.8,3088.4,3.2078]
[1763320228422,16.1872,3088.5,3087.6,3.2078]
[1763320228625,3.2104,3088.1,3087.6,3.2078]
[1763320229021,0.00377303,3088.1,3087.6,3.21063976]
[1763320229222,3.2104,3088.0,3087.6,3.21063976]
[1763320229525,0.00377303,3088.1,3087.6,3.21063976]
[1763320229927,0.00377303,3088.1,3088.0,3.2078]
[1763320230225,3.2078,3089.0,3088.0,3.2078]
[1763320230424,0.00485625,3088.8,3088.5,3.2078]
[1763320230926,16.1888,3088.6,3088.5,3.2078]
[1763320231125,0.60285625,3088.8,3088.5,3.2078]
[1763320231325,3.2078,3089.5,3088.5,3.2078]
[1763320231522,19.3934,3089.5,3088.5,3.2078]
[1763320231725,3.2104,3089.2,3088.5,3.2078]
[1763320231928,0.598,3091.2,3089.0,3.2078]
[1763320231929,3.2078,3091.1,3089.0,3.2078]
[1763320232229,0.598,3090.4,3089.4,3.2078]
[1763320232424,2.6113,3089.9,3089.4,3.2078]
[1763320232617,0.00485625,3090.2,3089.8,3.2078]
[1763320233722,0.00485625,3090.2,3089.9,1.1119955]
[1763320234026,0.00485625,3090.2,3089.8,3.2078]
[1763320234027,0.00485625,3090.2,3090.0,1.1119955]
[1763320234321,0.00485625,3090.2,3090.1,1.1119955]
[1763320234527,3.2078,3092.3,3090.3,3.2078]
[1763320234716,3.8058,3093.6,3091.3,3.2078]
[1763320234921,3.8058,3093.6,3090.8,6.10419759]
[1763320234922,3.2078,3093.2,3092.1,3.2078]
[1763320235120,3.2078,3093.2,3092.2,1.1119955]
[1763320235321,0.598,3093.6,3092.5,3.2078]
[1763320235322,3.8058,3093.6,3092.5,3.2078]
[1763320235528,3.8058,3094.4,3093.5,3.2078]
[1763320235836,16.1962,3093.7,3092.9,3.2078]
[1763320236030,0.0346,3093.7,3093.4,3.2078]
[1763320236216,3.2078,3095.0,3093.5,1.10869977]
[1763320236418,3.2078,3095.0,3093.9,3.2078]
[1763320236624,16.1616,3095.0,3094.5,3.2078]
[1763320236919,0.598,3096.9,3094.6,1.10869977]
[1763320236920,3.8058,3095.2,3094.6,1.10869977]
[1763320237126,3.2078,3094.9,3094.1,3.2078]
[1763320237322,3.2078,3094.9,3094.2,1.1044071]
[1763320237524,16.1584,3094.8,3094.3,1.1044071]
[1763320237828,3.2078,3094.5,3094.3,0.00400655]
[1763320238023,2.6113,3094.4,3094.3,0.00400655]
[1763320238431,3.21099476,3094.9,3094.3,1.10850325]
[1763320238730,3.21099476,3094.9,3094.4,1.1044967]
[1763320238927,0.00319476,3094.9,3094.5,4.3122967]
[1763320239138,3.2078,3096.2,3094.8,3.87642991]
[1763320239335,0.598,3099.6,3097.8,3.2078]
[1763320239524,2.6113,3098.7,3098.3,3.2078]
[1763320239829,16.1408,3099.5,3098.8,3.2078]
[1763320240030,16.1408,3099.5,3098.4,1.1044967]
[1763320240031,16.1392,3099.4,3098.6,3.2078]
[1763320240424,0.598,3099.6,3098.6,3.2078]
[1763320240625,0.598,3099.6,3099.0,3.2078]
[1763320240825,0.598,3099.6,3098.7,0.00484035]
[1763320240826,16.136,3099.5,3098.7,0.00484035]
[1763320241327,2.6113,3099.0,3098.7,3.2154687]
[1763320241626,2.6113,3099.0,3096.7,2.19611881]
[1763320241627,3.2078,3099.2,3098.3,3.2078]
[1763320241830,3.2078,3099.2,3098.7,3.2078]
[1763320242022,0.598,3098.7,3098.3,3.2078]
[1763320242224,3.2078,3098.4,3097.5,3.2078]
[1763320242422,0.00357011,3099.5,3098.4,3.59631329]
[1763320242423,0.05617288,3099.1,3098.4,3.59631329]
[1763320242729,0.05617288,3099.1,3099.0,3.2078]
[1763320242730,0.00481401,3099.1,3099.0,3.2078]
[1763320242928,3.2078,3101.0,3099.0,3.2078]
[1763320243128,0.598,3099.8,3099.6,3.2078]
[1763320243428,0.598,3099.8,3098.4,3.4476269]
[1763320243429,0.598,3098.7,3098.4,0.0073373]
[1763320243728,16.1328,3099.7,3098.6,3.2078]
[1763320243925,4.61078527,3099.0,3098.6,3.2078]
[1763320244227,0.598,3098.7,3098.6,3.2078]
[1763320244418,0.598,3097.6,3096.8,3.2078]
[1763320244622,4.61078527,3098.2,3097.2,3.2078]
[1763320244830,0.598,3098.7,3098.0,3.2078]
[1763320245133,0.598,3098.7,3097.3,1.09174292]
[1763320245134,3.2078,3099.2,3098.4,3.2078]
[1763320245433,0.00484035,3099.1,3098.8,3.2078]
[1763320246332,3.2078,3099.0,3098.5,0.00484035]
[1763320247133,0.598,3099.8,3098.6,7.70920483]
[1763320247325,3.2078,3099.5,3098.8,3.2078]
[1763320247523,3.2078,3099.1,3098.5,0.00484035]
[1763320247832,3.2078,3101.1,3099.0,3.2078]
[1763320248137,0.0346,3103.7,3100.1,4.84405788]
[1763320248138,3.2078,3102.1,3100.1,4.84405788]
[1763320248331,3.2078,3102.1,3099.1,5.36665449]
[1763320248332,4.61078527,3101.1,3100.8,3.2078]
[1763320248632,3.2078,3103.5,3100.9,1.09570046]
[1763320248824,3.2078,3104.3,3102.7,3.2078]
[1763320249023,1.5115,3104.2,3103.1,3.2078]
[1763320249232,9.5675,3104.2,3103.0,3.2078]
[1763320249438,3.2078,3103.7,3103.2,0.00484035]
[1763320249624,3.2078,3103.3,3103.1,1.09507272]
[1763320249825,3.2078,3103.3,3102.0,3.2078]
[1763320250130,1.51383462,3104.2,3103.2,3.5153345]
[1763320250326,3.2078,3103.3,3102.7,3.2078]
[1763320250527,3.2078,3103.6,3102.8,3.2078]
[1763320250724,0.00484035,3103.5,3103.2,3.2078]
[1763320250930,0.00233462,3104.2,3103.2,3.2078]
[1763320251123,3.2078,3104.8,3104.1,3.2078]
[1763320251326,1.5115,3108.6,3104.6,3.2078]
[1763320251327,3.2078,3107.4,3104.6,3.2078]
[1763320251523,3.2078,3107.1,3106.0,3.2078]
[1763320251728,5.4841322,3108.5,3106.6,3.2078]
[1763320251729,3.2078,3107.6,3106.6,3.2078]
[1763320251927,1.5115,3108.6,3105.7,1.6371383]
[1763320251928,3.2078,3108.2,3107.0,3.2078]
[1763320252132,3.2078,3107.2,3107.0,0.00308454]
[1763320252438,5.4841322,3107.1,3105.9,3.2078]
[1763320252635,5.4841322,3107.1,3106.3,3.2078]
[1763320252829,3.2078,3107.4,3106.3,3.2078]
[1763320253033,3.2078,3107.4,3106.9,3.2078]
[1763320253229,0.17629883,3107.2,3106.9,3.2078]
[1763320253428,0.17629883,3107.2,3106.9,3.21018713]
[1763320253429,4.61078527,3107.0,3106.9,3.21018713]
[1763320253628,7.81858527,3107.0,3106.9,0.00238713]
[1763320253834,4.61078527,3106.8,3105.8,3.2078]
[1763320254032,3.2078,3105.9,3105.2,0.81403861]
[1763320254233,3.2078,3105.3,3104.5,4.02183861]
[1763320254541,3.2078,3105.3,3104.5,3.2078]
[1763320254738,5.48896421,3105.2,3104.6,0.00483201]
[1763320255037,3.2078,3104.9,3104.6,0.00483201]
[1763320255239,0.00483201,3105.2,3104.6,3.21263201]
[1763320255435,3.2078,3105.8,3105.0,3.03150117]
[1763320255635,3.2078,3107.8,3105.7,3.2078]
[1763320255934,3.2078,3107.4,3106.9,3.2078]
[1763320256236,1.5115,3106.8,3105.2,3.2078]
[1763320256431,1.51534147,3106.8,3106.6,3.2078]
[1763320256627,0.00384147,3106.8,3106.0,3.2078]
[1763320256827,0.0048042,3107.0,3106.5,3.2078]
[1763320257043,3.2078,3108.8,3106.9,3.2078]
[1763320257335,3.28003296,3108.6,3108.4,3.2078]
[1763320257534,3.2078,3110.2,3108.5,6.0]
[1763320257733,3.28003296,3109.1,3108.6,3.2078]
[1763320258035,3.2078,3110.1,3109.0,3.2078]
[1763320258237,3.2078,3110.1,3108.7,3.53785949]
[1763320258238,0.00230414,3109.1,3108.7,3.53785949]
[1763320258443,0.09064158,3111.0,3109.5,3.2078]
[1763320258733,0.09064158,3111.0,3110.7,3.2078]
[1763320258930,3.29844158,3111.0,3109.6,7.71650573]
[1763320259240,1.5115,3109.6,3108.9,3.2078]
[1763320259942,3.2078,3110.7,3109.3,3.2078]
[1763320260142,3.28003296,3110.0,3109.9,3.2078]
[1763320260328,5.4841322,3110.6,3109.9,3.2078]
[1763320260535,3.28003296,3110.0,3109.5,3.2078]
[1763320260732,1.5115,3109.6,3108.6,0.81403861]
[1763320260939,1.5115,3108.0,3107.8,0.81403861]
[1763320261141,1.5115,3108.0,3107.1,1.08726662]
[1763320261337,3.2078,3107.2,3106.4,3.19850916]
[1763320261532,3.2078,3107.2,3106.3,6.40630916]
[1763320261733,4.7193,3108.0,3106.9,3.19850916]
[1763320262039,3.2078,3107.3,3107.1,0.00482407]
[1763320262240,3.2078,3107.2,3107.1,0.00482407]
[1763320262730,6.0,3107.1,3105.7,6.40630916]
[1763320262934,3.2078,3106.9,3105.7,6.40630916]
[1763320263244,3.2078,3106.9,3105.8,4.27275474]
[1763320263445,2.530956,3106.1,3105.9,1.06495474]
[1763320263640,3.2078,3106.9,3105.9,1.06768795]
[1763320263843,2.530956,3106.0,3105.9,1.06768795]
[1763320264546,3.21259765,3107.8,3105.9,10.76023804]
[1763320264741,3.21259765,3107.8,3107.0,3.2078]
[1763320264942,1.51380617,3108.0,3105.9,7.94017461]
[1763320264943,0.00230617,3108.0,3107.7,6.40630916]
[1763320265144,0.00230617,3108.0,3107.8,1.06495474]
[1763320265443,0.00230617,3108.0,3107.9,1.06495474]
[1763320265643,2.40500689,3108.0,3107.1,3.2078]
[1763320265852,0.00230617,3108.0,3107.9,3.2078]
[1763320266060,0.00230617,3108.0,3107.6,0.00482407]
[1763320266558,2.40270072,3107.7,3107.6,0.00482407]
[1763320266757,1.5115,3107.0,3106.2,2.19611881]
[1763320266955,5.61050072,3106.3,3105.9,0.00273321]
[1763320267157,3.2078,3106.3,3105.3,2.19611881]
[1763320267361,1.5115,3107.0,3105.3,2.19611881]
[1763320267362,3.2078,3105.9,3105.3,2.19611881]
[1763320267654,2.40270072,3105.4,3105.3,0.00482407]
[1763320267853,5.61050072,3105.4,3104.7,2.19611881]
[1763320268049,2.40270072,3104.8,3104.7,0.00415476]
[1763320268357,5.61050072,3104.8,3104.3,2.19611881]
[1763320268560,1.5115,3104.4,3104.2,2.19611881]
[1763320268754,1.5115,3104.4,3103.9,2.77119175]
[1763320268755,1.5115,3104.4,3103.9,2.19611881]
[1763320268957,1.5115,3104.4,3104.2,2.19611881]
[1763320269158,4.7193,3104.4,3104.0,2.77119175]
[1763320269359,2.40270072,3104.3,3103.8,0.00483201]
[1763320269664,3.21154859,3105.4,3104.1,3.2078]
[1763320269962,0.00374859,3105.4,3104.9,3.2078]
[1763320270159,0.00482407,3105.9,3105.3,3.2078]
[1763320270453,0.00482407,3105.9,3105.5,2.77119175]
[1763320270760,0.00482407,3105.9,3105.4,0.00483201]
[1763320270956,3.2078,3105.7,3105.4,0.00483201]
[1763320271256,0.0039707,3105.7,3105.5,3.2078]
[1763320271462,2.40270072,3105.5,3105.4,0.00483201]
[1763320271763,2.40270072,3105.5,3105.4,0.4077479]
[1763320272156,0.0039707,3105.7,3105.4,0.4077479]
[1763320272456,0.00482407,3105.9,3105.5,0.40291589]
[1763320272751,0.4769,3105.7,3104.7,3.2078]
[1763320272957,3.2078,3105.1,3104.4,3.92439759]
[1763320273263,3.21098285,3105.1,3104.3,3.2078]
[1763320273461,2.40270072,3104.4,3103.9,8.8649706]
[1763320273760,3.2078,3104.2,3103.8,0.00730682]
[1763320273956,2.40270072,3103.9,3103.8,0.00730682]
[1763320274359,8.40270072,3103.9,3103.8,0.00730682]
[1763320274564,6.0,3103.9,3102.9,3.2078]
[1763320274759,2.3953939,3103.0,3102.9,3.2078]
[1763320275255,8.3953939,3103.0,3102.3,3.2078]
[1763320275457,2.3953939,3102.4,3102.1,5.6571706]
[1763320275759,2.3953939,3102.2,3101.2,5.6571706]
[1763320275958,7.832,3103.3,3102.1,1.221e-05]
[1763320275959,0.00252051,3102.4,3102.1,1.221e-05]
[1763320276157,3.2078,3102.2,3102.1,1.221e-05]
[1763320276358,3.2078,3102.2,3101.1,3.2078]
[1763320276562,2.3953939,3101.2,3100.5,3.2078]
[1763320276765,3.2078,3100.6,3099.9,5.6571706]
[1763320276958,9.20102967,3102.4,3100.1,3.2078]
[1763320276959,3.2078,3101.0,3100.1,3.2078]
[1763320277156,3.2078,3101.0,3099.7,3.2078]
[1763320277465,2.3953939,3100.2,3100.0,0.00321871]
[1763320277763,0.00483201,3100.7,3100.1,0.95537925]
[1763320277962,3.2078,3100.4,3100.2,0.95537925]
[1763320278161,3.2078,3100.4,3100.3,0.95537925]
[1763320278463,0.00739472,3100.7,3100.3,0.95537925]
[1763320278778,0.00739472,3100.7,3100.4,0.95537925]
[1763320278957,2.1855852,3100.2,3100.0,0.00321871]
[1763320279165,2.73210165,3100.5,3100.1,0.94621183]
[1763320279354,0.00256271,3100.7,3100.4,2.26630131]
[1763320279560,2.1855852,3100.6,3100.5,4.15401183]
[1763320279760,3.2078,3100.7,3100.5,0.94621183]